Cogmind - Beta 13 @@@ ROGUE MODE // 2024.04.01 @ 18:40:11 Player: zsh Result: Destroyed by G-47 Trooper with Particle Gun Performance ------------- Evolutions (0) 0 Regions Visited (2) 400 Robots Destroyed (21) 105 Value Destroyed (311) 311 Prototype IDs (0) 0 Alien Tech Used (0) 0 Bonus (0) 0 TOTAL SCORE: 816 Bonus ------- None Cogmind --------- Core Integrity 0/250 Matter 247/300 Energy 100/100 System Corruption 6% Temperature Warning (344) Movement Core (700) Ox13 Location -10/Mines Parts ------- > --- POWER (1) -------- (None) > --- PROPULSION (2) --- (None) > --- UTILITY (2) ------ High-capacity Storage Unit > --- WEAPON (2) ------- (None) > --- INVENTORY (20) --- (None) Peak State ------------ > --- POWER ------------ Light Ion Engine > --- PROPULSION ------- Light Treads Light Treads > --- UTILITY ---------- Small Storage Unit Improved Terrain Scanner > --- WEAPON ----------- Small Laser Light Assault Rifle > --- INVENTORY -------- Light Ion Engine [Rating: 9] Favorites ----------- Power Light Ion Engine Engine Light Ion Engine Propulsion Light Treads Treads Light Treads Utility Small Storage Unit Device Seismic Detector Storage Small Storage Unit Processor Signal Interpreter Weapon Small Laser Energy Gun Small Laser Ballistic Gun Light Assault Rifle Launcher Grenade Launcher Build | -11 -10 -10 ------- Run | Yrd Mat Min Slots Evolved . | . . . Power . | . . . Propulsion . | . . . Utility . | . . . Weapon . | . . . Parts Attached 15 | 8 2 5 Power 3 | 1 . 2 Engine 3 | 1 . 2 Core . | . . . Reactor . | . . . Propulsion 2 | 2 . . Treads 2 | 2 . . Leg . | . . . Wheel . | . . . Hover . | . . . Flight . | . . . Utility 5 | 2 1 2 Device 2 | 1 1 . Storage 2 | 1 . 1 Processor 1 | . . 1 Hackware . | . . . Protection . | . . . Artifact . | . . . Weapon 5 | 3 1 1 Energy Gun 1 | 1 . . Energy Cannon . | . . . Ballistic Gun 3 | 2 . 1 Ballistic Cannon . | . . . Launcher 1 | . 1 . Special Weapon . | . . . Impact Weapon . | . . . Slashing Weapon . | . . . Piercing Weapon . | . . . Special Melee Weapon . | . . . Unidentified Prototypes . | . . . Parts Lost 10 | . 3 7 Power 3 | . 1 2 Propulsion 2 | . . 2 Utility 2 | . 1 1 Weapon 3 | . 1 2 Highest Loss Streak 6 | . 3 6 To Critical Strikes 1 | . . 1 Average Slot Usage (%) 93 | . 93 93 Engine 11 | . 11 11 Treads 27 | . 28 26 Device 5 | . 11 . Storage 13 | . 14 13 Processor 6 | . . 12 Energy Gun 14 | . 14 14 Ballistic Gun 7 | . 1 13 Launcher 4 | . 10 . Naked Turns . | . . . Heaviest Build 45 | 11 13 45 Greatest Support 40 | 40 40 40 Greatest Overweight (x) 1 | . . 1 Average Overweight (x) . | . . . Largest Inventory Capacity 20 | 8 8 20 Average Capacity 11 | 7 8 18 Most Carried 3 | 1 2 3 Average Carried 1 | . 1 . Final Capacity 20 | 8 8 20 Final Carried 2 | 1 2 . Class Distribution -------------------- 100% | Mutant Dominant Class ---------------- Mutant | -10/Materials Mutant | -10/Mines Resources | -11 -10 -10 ----------- Run | Yrd Mat Min Matter Collected 439 | 274 61 104 Remotely . | . . . Salvage Created 348 | 63 176 109 Parts 38 | 7 17 14 Haulers Intercepted . | . . . Recyclers Shooed 3 | . 2 1 Parts Field Recycled . | . . . Retrieved Matter . | . . . Parts Self-Destructed . | . . . Prevented . | . . . Kills | -11 -10 -10 ------- Run | Yrd Mat Min Combat Hostiles Destroyed 11 | . 5 6 Guns 7 | . 1 6 AOE 4 | . 4 . Classes Destroyed 6 | 1 4 1 Worker 3 | . 2 1 Builder 3 | . 3 . Tunneler 3 | 3 . . Recycler 1 | . 1 . Swarmer 6 | . . 6 Grunt 5 | . 5 . Best Kill Streak 10 | 3 10 3 Combat Bots Only 4 | . 4 3 Max Kills in Single Turn 4 | 1 4 1 Gunslinging . | . . . Exploded 2 | . 2 . Melee . | . . . Uniques/NPCs Destroyed . | . . . Combat | -11 -10 -10 -------- Run | Yrd Mat Min Hostile Shots Fired 111 | . 22 89 Missed 24 | . 5 19 Damage Taken 1065 | . 447 618 Core 263 | . 135 128 Absorbed by Shields . | . . . Core Remaining (%) 100 | 100 . . Volleys Fired 53 | 8 16 29 Largest 2 | 2 2 2 Hottest 70 | 60 70 60 Shots Fired 91 | 16 28 47 Gun 80 | 16 17 47 Cannon . | . . . Launcher 11 | . 11 . Special . | . . . Kinetic 34 | 8 . 26 Thermal 46 | 8 17 21 Explosive 11 | . 11 . Electromagnetic . | . . . Robot Hit Streak 6 | 6 6 4 Robot Miss Streak 6 | 2 3 6 Penetration Max . | . . . Secondary Targets 3 | . . 3 Max Gunslinging Chain 1 | . . 1 Shots Hit Robots 51 | 9 19 23 Core Hits 36 | 4 22 10 Critical Kills 1 | . . 1 Critical Parts Destroyed . | . . . Critical Strikes 1 | . . 1 Destroy 1 | . . 1 Melee Attacks . | . . . Impact . | . . . Slashing . | . . . Piercing . | . . . Sneak Attacks . | . . . Combat Hostiles . | . . . Follow-up Attacks . | . . . Damage Inflicted 1251 | 89 922 240 Guns 447 | 89 118 240 Cannons . | . . . Explosions 804 | . 804 . Melee . | . . . Ramming . | . . . Kinetic 150 | 33 . 117 Thermal 297 | 56 118 123 Explosive 804 | . 804 . Electromagnetic . | . . . Impact . | . . . Slashing . | . . . Piercing . | . . . Highest Corruption 6 | . 6 6 Average Corruption 6 | . 6 6 Corruption Purged . | . . . Corruption Blocked . | . . . Effects 17 | . 2 15 Message Errors 1 | . . 1 Matter Fused 6 | . 1 5 Heat Flow Errors 2 | . . 2 Energy Discharges 4 | . . 4 Misfires 1 | . 1 . Weapon Failures 3 | . . 3 Overload Shots . | . . . Overflow Damage 25 | . 25 . Projectiles . | . . . Explosions 25 | . 25 . Melee . | . . . Knockbacks . | . . . Impact . | . . . Kinetic . | . . . Secondary . | . . . Self-Inflicted Damage . | . . . Shots . | . . . Rammed . | . . . Targets Rammed . | . . . Kicked . | . . . Crushed . | . . . Highest Temperature 351 | 40 138 351 Average Temperature 95 | 21 52 148 Received Heat Transfer 204 | . 120 84 Siege Activations . | . . . Robots Corrupted . | . . . Combat Hostiles . | . . . Parts Fried . | . . . Impact Corruptions . | . . . Robots Melted . | . . . Combat Hostiles . | . . . Parts Melted 1 | . . 1 Heat Transferred 675 | 125 275 275 Parts Sabotaged . | . . . Parts Stolen . | . . . Parts Stripped . | . . . Power Chain Reactions . | . . . Alert | -11 -10 -10 ------- Run | Yrd Mat Min Peak Influence 248 | 15 248 211 Initial 96 | . 9 96 Average 91 | 9 81 147 Maximum Alert Level 1 | . 1 1 Low Security (%) 87 | 100 95 72 Level 1 12 | . 4 27 Level 2 . | . . . Level 3 . | . . . Level 4 . | . . . Level 5 . | . . . High Security . | . . . Max Security . | . . . Squads Dispatched 1 | . 1 . Investigation . | . . . Extermination . | . . . Reinforcement 1 | . 1 . Assault . | . . . Garrison . | . . . Intercept . | . . . Searches Triggered . | . . . Construction Impeded . | . . . Haulers Reinforced . | . . . Active Scanning Responses . | . . . Cargo Convoy Interrupts . | . . . Stealth | -11 -10 -10 --------- Run | Yrd Mat Min Distress Signals . | . . . Communications Jammed . | . . . Distress Signals . | . . . Times Spotted 19 | . 8 11 Peak Tracking Total 5 | . 5 5 Tactical Retreats . | . . . Traps | -11 -10 -10 ------- Run | Yrd Mat Min Traps Triggered . | . . . Indirectly . | . . . Trap Hack Attempts . | . . . Triggered . | . . . Disarmed . | . . . Reprogrammed . | . . . Reused . | . . . Traps Extracted . | . . . Installed . | . . . Triggered . | . . . Machines | -11 -10 -10 ---------- Run | Yrd Mat Min Machines Disabled 1 | . 1 . Max in Single Turn 1 | . 1 . Machines Repaired . | . . . Machines Dismantled . | . . . Machines Sabotaged . | . . . Overloaded Fab Kills . | . . . Hacking | -11 -10 -10 --------- Run | Yrd Mat Min Machines Accessed 1 | . 1 . Terminals 1 | . 1 . Fabricators . | . . . Repair Stations . | . . . Recycling Units . | . . . Scanalyzers . | . . . Garrison Access . | . . . Total Hacks 2 | . 2 . Successful 2 | . 2 . Failed . | . . . Catastrophic . | . . . Database Lockouts . | . . . Manual . | . . . Terminals 2 | . 2 . Fabricators . | . . . Repair Stations . | . . . Recycling Units . | . . . Scanalyzers . | . . . Garrison Access . | . . . Terminal Hacks 2 | . 2 . Branch Access Points 1 | . 1 . Zone Layout 1 | . 1 . Fabricator Hacks . | . . . Repair Station Hacks . | . . . Recycling Unit Hacks . | . . . Scanalyzer . | . . . Garrison Access Hacks . | . . . Unauthorized Hacks . | . . . Terminals . | . . . Fabricators . | . . . Repair Stations . | . . . Recycling Units . | . . . Scanalyzers . | . . . Garrison Access . | . . . Data Cores Recovered . | . . . Used . | . . . Hacking Detections 1 | . 1 . Full Trace Events . | . . . Feedback Events . | . . . Feedback Blocked . | . . . Robot Schematics Acquired . | . . . Robots Built . | . . . Authchips . | . . . Time . | . . . Total Robot Build Rating . | . . . Part Schematics Acquired . | . . . Parts Built . | . . . Authchips . | . . . Time . | . . . Total Part Build Rating . | . . . Parts Repaired . | . . . Time . | . . . Parts Recycled . | . . . Recycled Matter . | . . . Retrieved Matter . | . . . Retrieved Components . | . . . Parts Scanalyzed . | . . . Part Schematics Acquired . | . . . Parts Damaged . | . . . Bothacking | -11 -10 -10 ------------ Run | Yrd Mat Min Used RIF Installer . | . . . Robots Hacked . | . . . Non-combat . | . . . Combat . | . . . Robot Hacks Applied . | . . . Relay Couplers Released . | . . . Fabnet Peak Effective % . | . . . Robots Rewired . | . . . Allies Hacked . | . . . Hacks Repelled . | . . . Allies | -11 -10 -10 -------- Run | Yrd Mat Min Total Allies . | . . . Largest Group . | . . . Highest-Rated Group . | . . . Highest-Rated Ally . | . . . Total Orders . | . . . Ally Attacks . | . . . Total Damage . | . . . Kills . | . . . Allies Corrupted . | . . . Allies Melted . | . . . Intel | -11 -10 -10 ------- Run | Yrd Mat Min Robot Analysis Total . | . . . Derelict Logs Recovered . | . . . Drone Launches . | . . . Drone Recoveries . | . . . Exploration | -11 -10 -10 ------------- Run | Yrd Mat Min Turns Passed 765 | 180 278 307 Spaces Moved 343 | 97 144 102 Core 9 | 9 . . Treads 334 | 88 144 102 Legs . | . . . Wheels . | . . . Hover . | . . . Flight . | . . . Fastest Speed 50 | 50 160 160 Average Speed 175 | 149 160 220 Slowest Speed 240 | 160 160 240 Overloaded Moves . | . . . Propulsion Burnouts . | . . . Robots Hopped . | . . . Cave-ins Triggered 1 | . 1 . Exploration Rate (%) 20 | 5 29 28 Regions Visited 2 Branch Regions 1 Pre-discovered Areas . | . . . Known Exits Taken 1 | . 1 . Unknown Exits Taken 1 | 1 . . Scrap Searched 1 | . . 1 Spaces Dug . | . . . Terrain Destroyed 34 | . 34 . Melee . | . . . Projectile . | . . . AOE 34 | . 34 . Terrain Rammed . | . . . Walls Destroyed . | . . . Machines Disabled . | . . . Actions | -11 -10 -10 --------- Run | Yrd Mat Min Total 418 | 114 164 140 Wait 1 | . 1 . Move 341 | 96 143 102 Hop . | . . . Pick Up 5 | 1 1 3 Fast Attach 9 | 8 1 . Attach 5 | . . 5 Detach . | . . . Swap 1 | . 1 . Drop 3 | 1 1 1 Fire 53 | 8 16 29 Melee . | . . . Ram . | . . . Kick . | . . . Crush . | . . . Escape Stasis . | . . . Rewire . | . . . Trap . | . . . Miscellaneous . | . . . Route ------- -11/Scrapyard -10/Materials (discovered 2 exits: *Min x2) -10/Mines History --------- Turn | Location | Event 9 | -11/Scrapyard | Discovered new exit (range 14) 181 | -11/Scrapyard | Entered Materials 307 | -10/Materials | Build established: Mutant 389 | -10/Materials | Identified exit to Mines 413 | -10/Materials | Crushed by falling debris 413 | -10/Materials | Core integrity fell below 50% 444 | -10/Materials | Lost 3 parts (1p1u1w) 459 | -10/Materials | Entered Mines 754 | -10/Mines | Core integrity fell below 20% 766 | -10/Mines | Destroyed by G-47 Trooper with Particle Gun Last Messages --------------- Flight Unit melted. S-10 Pest destroyed. R-06 Scavenger collects Flight Unit. R-06 Scavenger collects Lgt. Ion Engine. Acquired 11 matter. System corrupted: Matter fused (-10). Acquired 20 matter. System corrupted: Energy discharge (-31). Acquired 11 matter. System corrupted: Matter fused (-5). System corrupted: Heat flow error (+295). Lgt. Treads destroyed. Signal Interpreter destroyed. S-10 Pest destroyed. Switching to secondary target: G-47 Trooper. Lgt. Treads destroyed. Sml. Laser destroyed. Lgt. Ion Engine destroyed. Lgt. Assault Rifle destroyed. Critical hit (Burn: +37). Map ----- +----------------------------------------------------+ | ?????????????????????????? ?????????? | | ?????????????????????????? #????????? | | ??????????????????????????? ????????? | | ??????????????????????????? ????????? | | ??????????????????????????? ?????????? | | ???????????????????????????# ?????????? | | ???????????????????????????# #?????????? | | ???????????????????????????# ?????????? | | ???????????????????????????# #?????????? | | ???????????????????????????# #?????????? | | ?????????????? ????????# ##????????? | | ????????????? ?????## ##???????? | | ??????????? ?????# #???????? | | ?????????? ?????## #???????? | | ?????????? ?????# ##???????? | | ??????????? #????# ##???????? | | ???????????? #???#= #???????? | | ????????????# #?## ##??????? | | ????????????? ## ###????? | | ?????????????# ?# ###??? | | ?????????????# #?## ###? | | ??????????????# * #??# ## ## | | ???????????????#ss#??## #### # | | ???????????????#= ###?### ####??## | | ????????????# ## ##### #??????## | | ????????????# @ g u #???????## | | ????????????#### g#######????????## | | ???????????????# ##???????????????## | | ????????????? #?????????????????## | | ????????????#### #?????????????????# | | ???????????????# ????????????????## | | ???????????????# ????????????????? | | ???????????????# ???????????????? | | ??????????????? ??????????????? | | ?????????????? #?????????????? | | ????????????? ### ####?????????????? | | ????????????? ??## ####????????????????? | | ????????????#????# t#???????????????????? | | ?????????????????? #???????????????????? | | ?????????????????? ???????????????????? | | ?????????????????? ???????????????????? | | ?????????????????? #????????????????????? | | ????????????????????????????????????????? | | ????????????????????????????????????????? | | ????????????????????????????????????????? | | ????????????????????????????????????????? | | ????????????????????????????????????????? | | ????????????????????????????????????????? | | ????????????????????????????????????????? | | ????????????????????????????????????????? | +----------------------------------------------------+ Best States ------------- Heat Dissipation 25 Energy Generation 10 Energy Capacity 125 Matter Stores 300 Matter Capacity 300 Sight Range 16 Terrain Scan Range 16 Terrain Scan Density 10 Evasion (%) 40 Recoil Reduction 2 Item Schematics ----------------- None Robot Schematics ------------------ None Fabricated ------------ Nothing Alien Tech Used ----------------- None Achievements -------------- None Challenges ------------ None Game ------ Seed ArmageddonCobblerLattice Manual? 0 Play Time 00:08:36 Cumulative 1.2 hours Start 2024.04.01 @ 18:33:45 End 2024.04.01 @ 18:40:11 Sessions 1 Manual Loads 0 Difficulty Rogue Special Mode None Game No. 4 Rogue 4 Adventurer 0 Explorer 0 Win Type - Total 0 Types 0/0/0/0/0/0/0/0/0 Lore% 0 Gallery% 5 Achievement% 4 Wizard Run 0 Options --------- Layout 1 ASCII 0 Keyboard 0 Movement Arrows Keybinds 0 Fullscreen 1 Font 20/SmallcapsGlow Map View 56x45 Zoom Use 0% Tactical HUD 0 Map Filters NONE Filters NONE Steam 1 RUN: ca7b35fa-6280-4d15-9acb-e56a7a2cedc2